fUSD/lending_fUSD_20250206
["ID","MTS","AMOUNT","RATE_DAILY","PERIOD"]
[351885272,1738828323539,-700.57,0.00020229,3]
[351885273,1738828323550,-880.85,0.00020229,3]
[351885274,1738828323561,-500.0,0.00020229,3]
[351885275,1738828323571,-915.45,0.00020229,3]
[351885276,1738828323581,-500.0,0.00020229,3]
[351885277,1738828323592,-585.29,0.00020229,3]
[351885278,1738828323602,-593.78,0.00020229,3]
[351885279,1738828323612,-576.4,0.00020229,3]
[351885280,1738828323622,-882.26,0.00020229,3]
[351885281,1738828323632,-952.02,0.00020229,3]
[351885282,1738828323643,-1382.3,0.00020229,3]
[351885283,1738828323653,-1211.98,0.00020229,3]
[351885284,1738828323663,-994.07,0.00020229,3]
[351885285,1738828323674,-699.15,0.00020229,3]
[351885286,1738828323685,-1461.4,0.00020229,3]
[351885287,1738828323695,-966.96,0.00020229,3]
[351885288,1738828323709,-1359.27,0.00020229,3]
[351885289,1738828323720,-500.0,0.00020229,3]
[351885290,1738828323731,-529.22,0.00020229,3]
[351885291,1738828323741,-1133.41,0.00020229,3]
[351885292,1738828323751,-1887.44,0.00020229,3]
[351885293,1738828323762,-823.75,0.00020229,3]
[351885294,1738828323773,-812.31,0.00020229,3]
[351885295,1738828323783,-500.0,0.00020229,3]
[351885296,1738828323793,-1530.95,0.00020229,3]
[351885297,1738828323804,-945.66,0.00020229,3]
[351885298,1738828323815,-575.52,0.00020229,3]
[351885299,1738828323824,-500.0,0.00020229,3]
[351885300,1738828323835,-958.23,0.00020229,3]
[351885301,1738828323846,-4091.65,0.00020229,3]
[351885302,1738828323856,-1452.35,0.00020229,3]
[351885303,1738828323867,-500.0,0.00020229,3]
[351885304,1738828323876,-500.0,0.00020229,3]
[351885305,1738828323886,-755.58,0.00020229,3]
[351885306,1738828323896,-1071.43,0.00020229,3]
[351885307,1738828323906,-1231.08,0.00020229,3]
[351885308,1738828323916,-500.0,0.00020229,3]
[351885309,1738828323926,-1407.85,0.00020229,3]
[351885310,1738828323936,-562.09,0.00020229,3]
[351885311,1738828323946,-600.33,0.00020229,3]
[351885312,1738828323959,-1670.31,0.00020229,3]
[351885313,1738828323970,-465.3,0.00020229,3]
[351885314,1738828323981,-500.0,0.00020229,3]
[351885315,1738828323992,-535.23,0.00020229,3]
[351885316,1738828324003,-594.41,0.00020229,3]
[351885317,1738828324014,-410.04,0.00020229,3]
[351885318,1738828324024,-1184.3,0.00020229,3]
[351885319,1738828324035,-512.51,0.00020229,3]
[351885320,1738828324045,-1500.26,0.00020229,3]
[351885321,1738828324055,-1634.32,0.00020229,3]
[351885322,1738828324066,-1097.03,0.00020229,3]
[351885323,1738828324081,-543.38,0.00020229,3]
[351885324,1738828324091,-524.92,0.00020229,3]
[351885325,1738828324101,-1638.97,0.00020229,3]
[351885326,1738828324112,-866.19,0.00020229,3]
[351885327,1738828324124,-500.0,0.00020229,3]
[351885328,1738828324134,-1244.13,0.00020229,3]
[351885329,1738828324144,-1026.8,0.00020229,3]
[351885330,1738828324154,-522.29,0.00020229,3]
[351885331,1738828324165,-1498.7,0.00020229,3]
[351885332,1738828324176,-914.83,0.00020229,3]
[351885333,1738828324185,-500.0,0.00020229,3]
[351885334,1738828324195,-681.41,0.00020229,3]
[351885335,1738828324206,-557.43,0.00020229,3]
[351885336,1738828324216,-1176.09,0.00020229,3]
[351885337,1738828324226,-500.0,0.00020229,3]
[351885338,1738828324236,-1098.98,0.00020229,3]
[351885339,1738828324246,-791.26,0.00020229,3]
[351885340,1738828324257,-1368.78,0.00020229,3]
[351885341,1738828324267,-500.0,0.00020229,3]
[351885342,1738828324277,-500.0,0.00020229,3]
[351885343,1738828324287,-563.62,0.00020229,3]
[351885344,1738828324439,-624.05,0.00020229,3]
[351885345,1738828324449,-788.88,0.00020229,2]
[351885346,1738828324461,-500.0,0.0002023,3]
[351885347,1738828324471,-503.00059111,0.0002023,3]
[351885348,1738828324481,-500.0,0.0002023,3]
[351885349,1738828324491,-500.0,0.0002023,3]
[351885350,1738828324501,-500.0,0.0002023,3]
[351885351,1738828324512,-500.0,0.0002023,3]
[351885352,1738828324522,-500.0,0.0002023,3]
[351885353,1738828324532,-500.0,0.0002023,3]
[351885354,1738828324543,-631.78327099,0.0002023,3]
[351885355,1738828324553,-502.63037334,0.0002023,3]
[351885356,1738828324564,-500.0,0.0002023,3]
[351885357,1738828324575,-500.0,0.0002023,3]
[351885358,1738828324586,-500.0,0.0002023,3]
[351885359,1738828324597,-500.0,0.0002023,3]
[351885360,1738828324607,-500.0,0.0002023,3]
[351885361,1738828324618,-599.81109618,0.0002023,3]
[351885362,1738828324629,-500.0,0.0002023,3]
[351885363,1738828324640,-150.0,0.00020231,2]
[351885364,1738828324650,-150.0,0.00020232,2]
[351885365,1738828324660,-2865.0934714,0.00020234,2]
[351885366,1738828324671,-2483.6672505,0.00020234,2]
[351885367,1738828324681,-1794.5162202,0.00020234,2]
[351885368,1738828324691,-2916.2504622,0.00020234,2]
[351885369,1738828324701,-6173.4178563,0.00020234,2]
[351885370,1738828324715,-150.0,0.00020235,2]
[351885371,1738828324725,-150.0,0.00020235,2]
[351885372,1738828324734,-150.0,0.0002024,2]
[351885373,1738828324745,-150.0,0.00020241,2]
[351885374,1738828324755,-151.0,0.00020242,2]
[351885375,1738828324764,-151.0,0.00020242,2]
[351885376,1738828324774,-151.0,0.00020242,2]
[351885377,1738828324784,-348.47,0.00020242,3]
[351885378,1738828324794,-518.44,0.00020242,3]
[351885379,1738828324805,-518.44,0.00020242,3]
[351885380,1738828324814,-614.61,0.00020242,3]
[351885381,1738828324824,-614.61,0.00020242,3]
[351885382,1738828324834,-150.0,0.00020242,2]
[351885383,1738828324844,-500.0,0.00020242,3]
[351885384,1738828324854,-500.0,0.00020242,3]
[351885385,1738828324864,-719.46,0.00020242,3]
[351885386,1738828324874,-719.46,0.00020242,3]
[351885387,1738828324884,-359.82,0.00020242,3]
[351885388,1738828324894,-591.95,0.00020242,3]
[351885389,1738828324905,-591.95,0.00020242,3]
[351885390,1738828324915,-500.0,0.00020242,3]
[351885391,1738828324926,-630.4,0.00020242,3]
[351885392,1738828324937,-970.24,0.00020242,3]
[351885393,1738828324947,-970.24,0.00020242,3]
[351885394,1738828324959,-553.77,0.00020242,3]
[351885395,1738828324969,-553.77,0.00020242,3]
[351885396,1738828324978,-568.95,0.00020242,3]
[351885397,1738828324987,-568.95,0.00020242,3]
[351885398,1738828324997,-880.85,0.00020242,3]
[351885399,1738828325007,-880.85,0.00020242,3]
[351885400,1738828325017,-500.0,0.00020242,3]
[351885401,1738828325027,-500.0,0.00020242,3]
[351885402,1738828325037,-994.07,0.00020242,3]
[351885403,1738828325046,-994.07,0.00020242,3]
[351885404,1738828325057,-899.16,0.00020242,3]
[351885405,1738828325068,-966.96,0.00020242,3]
[351885406,1738828325082,-966.96,0.00020242,3]
[351885407,1738828325092,-500.0,0.00020242,3]
[351885408,1738828325101,-500.0,0.00020242,3]
[351885409,1738828325111,-500.0,0.00020242,3]
[351885410,1738828325121,-1133.41,0.00020242,3]
[351885411,1738828325131,-1133.41,0.00020242,3]
[351885412,1738828325140,-823.75,0.00020242,3]
[351885413,1738828325151,-823.75,0.00020242,3]
[351885414,1738828325161,-1035.82,0.00020242,3]
[351885415,1738828325172,-945.66,0.00020242,3]
[351885416,1738828325182,-945.66,0.00020242,3]
[351885417,1738828325192,-4091.65,0.00020242,3]
[351885418,1738828325204,-4091.65,0.00020242,3]
[351885419,1738828325214,-1452.35,0.00020242,3]
[351885420,1738828325225,-1452.35,0.00020242,3]
[351885421,1738828325234,-1071.43,0.00020242,3]
[351885422,1738828325245,-1071.43,0.00020242,3]
[351885423,1738828325255,-1670.31,0.00020242,3]
[351885424,1738828325265,-1670.31,0.00020242,3]
[351885425,1738828325274,-535.23,0.00020242,3]
[351885426,1738828325284,-535.23,0.00020242,3]
[351885427,1738828325294,-594.41,0.00020242,3]
[351885428,1738828325304,-594.41,0.00020242,3]
[351885429,1738828325315,-1500.26,0.00020242,3]
[351885430,1738828325325,-1500.26,0.00020242,3]
[351885431,1738828325334,-1097.03,0.00020242,3]
[351885432,1738828325343,-1097.03,0.00020242,3]
[351885433,1738828325353,-524.92,0.00020242,3]
[351885434,1738828325363,-524.92,0.00020242,3]
[351885435,1738828325372,-1244.13,0.00020242,3]
[351885436,1738828325382,-1244.13,0.00020242,3]
[351885437,1738828325391,-522.29,0.00020242,3]
[351885438,1738828325401,-522.29,0.00020242,3]
[351885439,1738828325411,-681.41,0.00020242,3]
[351885440,1738828325422,-681.41,0.00020242,3]
[351885441,1738828325432,-1176.09,0.00020242,3]
[351885442,1738828325441,-500.0,0.00020242,3]
[351885443,1738828325451,-1176.09,0.00020242,3]
[351885444,1738828325462,-500.0,0.00020242,3]
[351885445,1738828325472,-500.0,0.00020242,3]
[351885446,1738828325482,-500.0,0.00020242,3]
[351885447,1738828325492,-624.05,0.00020242,3]
[351885448,1738828325502,-624.05,0.00020242,3]
[351885449,1738828325511,-542.48,0.00020243,3]
[351885450,1738828325521,-500.0,0.00020243,3]
[351885451,1738828325530,-151.0,0.00020243,2]
[351885452,1738828325539,-151.0,0.00020243,2]
[351885453,1738828325550,-527.83,0.00020243,3]
[351885454,1738828325559,-500.0,0.00020243,3]
[351885455,1738828325569,-566.87,0.00020243,3]
[351885456,1738828325579,-685.75,0.00020243,3]
[351885457,1738828325589,-500.0,0.00020243,3]
[351885458,1738828325599,-500.0,0.00020243,3]
[351885459,1738828325609,-500.0,0.00020243,3]
[351885460,1738828325619,-500.0,0.00020243,3]
[351885461,1738828325628,-500.0,0.00020243,3]
[351885462,1738828325638,-779.86,0.00020243,3]
[351885463,1738828325648,-500.0,0.00020243,3]
[351885464,1738828325658,-684.11,0.00020243,3]
[351885465,1738828325668,-540.0,0.00020243,3]
[351885466,1738828325679,-580.24,0.00020243,3]
[351885467,1738828325688,-500.0,0.00020243,3]
[351885468,1738828325698,-500.0,0.00020243,3]
[351885469,1738828325709,-500.0,0.00020243,3]
[351885470,1738828325719,-522.88,0.00020243,3]
[351885471,1738828325729,-500.0,0.00020243,3]
[351885472,1738828325739,-657.45,0.00020243,3]
[351885473,1738828325748,-582.0,0.00020243,3]
[351885474,1738828325758,-615.0,0.00020243,3]
[351885475,1738828325767,-592.65,0.00020243,3]
[351885476,1738828325777,-151.0,0.00020243,2]
[351885477,1738828325786,-643.53,0.00020243,3]
[351885478,1738828325796,-683.42,0.00020243,3]
[351885479,1738828325806,-500.0,0.00020243,3]
[351885480,1738828325816,-743.5,0.00020243,3]
[351885481,1738828325826,-911.42,0.00020243,3]
[351885482,1738828325835,-500.0,0.00020243,3]
[351885483,1738828325845,-596.4,0.00020243,3]
[351885484,1738828325855,-675.43,0.00020243,3]
[351885485,1738828325866,-878.64,0.00020243,3]
[351885486,1738828325875,-876.77,0.00020243,3]
[351885487,1738828325886,-700.57,0.00020243,3]
[351885488,1738828325896,-593.78,0.00020243,3]
[351885489,1738828325906,-576.4,0.00020243,3]
[351885490,1738828325916,-952.02,0.00020243,3]
[351885491,1738828325927,-1382.3,0.00020243,3]
[351885492,1738828325937,-699.15,0.00020243,3]
[351885493,1738828325947,-1461.4,0.00020243,3]
[351885494,1738828325958,-1359.27,0.00020243,3]
[351885495,1738828325967,-1887.44,0.00020243,3]
[351885496,1738828325976,-812.31,0.00020243,3]
[351885497,1738828325986,-500.0,0.00020243,3]
[351885498,1738828325995,-1530.95,0.00020243,3]
[351885499,1738828326005,-958.23,0.00020243,3]
[351885500,1738828326014,-755.58,0.00020243,3]
[351885501,1738828326025,-1231.08,0.00020243,3]
[351885502,1738828326034,-1407.85,0.00020243,3]
[351885503,1738828326045,-562.09,0.00020243,3]
[351885504,1738828326055,-500.0,0.00020243,3]
[351885505,1738828326067,-1184.3,0.00020243,3]
[351885506,1738828326077,-1634.32,0.00020243,3]
[351885507,1738828326086,-1638.97,0.00020243,3]
[351885508,1738828326096,-866.19,0.00020243,3]
[351885509,1738828326106,-500.0,0.00020243,3]
[351885510,1738828326117,-1026.8,0.00020243,3]
[351885511,1738828326127,-1498.7,0.00020243,3]
[351885512,1738828326137,-914.83,0.00020243,3]
[351885513,1738828326148,-500.0,0.00020243,3]
[351885514,1738828326159,-1098.98,0.00020243,3]
[351885515,1738828326168,-791.26,0.00020243,3]
[351885516,1738828326178,-1368.78,0.00020243,3]
[351885517,1738828326188,-699.21105374,0.00020244,2]
[351885518,1738828326197,-699.21105374,0.00020244,2]
[351885519,1738828326208,-699.21105374,0.00020244,2]
[351885520,1738828326218,-699.21105374,0.00020244,2]
[351885521,1738828326228,-699.21105374,0.00020244,2]
[351885522,1738828326238,-699.21105374,0.00020244,2]
[351885523,1738828326247,-699.21105374,0.00020244,2]
[351885524,1738828326257,-699.21105374,0.00020244,2]
[351885525,1738828326267,-699.21105374,0.00020244,2]
[351885526,1738828326277,-699.21105374,0.00020244,2]
[351885527,1738828326286,-699.21105374,0.00020244,2]
[351885528,1738828326295,-699.21105374,0.00020244,2]
[351885529,1738828326305,-699.21105374,0.00020244,2]
[351885530,1738828326314,-699.21105374,0.00020244,2]
[351885531,1738828326324,-699.21105374,0.00020244,2]
[351885532,1738828326334,-699.21105374,0.00020244,2]
[351885533,1738828326343,-699.21105374,0.00020244,2]
[351885534,1738828326352,-699.21105374,0.00020244,2]
[351885535,1738828326362,-699.21105374,0.00020244,2]
[351885536,1738828326371,-699.21,0.00020244,2]
[351885537,1738828326380,-1631.49245873,0.00020244,2]
[351885538,1738828326390,-2110.03,0.00020245,2]
[351885539,1738828326399,-150.0,0.00020247,3]
[351885540,1738828326409,-268.8851254,0.00020247,3]
[351885541,1738828326419,-500.0,0.00020247,3]
[351885542,1738828326428,-150.0,0.00020247,3]
[351885543,1738828326438,-150.0,0.00020247,2]
[351885544,1738828326447,-500.0,0.00020247,3]
[351885545,1738828326459,-3721.0,0.00020247,3]
[351885546,1738828326469,-666.0,0.00020248,2]
[351885547,1738828326479,-531.95,0.00020249,3]
[351885548,1738828326488,-531.95,0.00020249,3]
[351885549,1738828326498,-531.95,0.00020249,3]
[351885550,1738828326507,-531.95,0.00020249,3]
[351885551,1738828326517,-532.05,0.00020249,3]
[351885552,1738828326527,-513.51,0.00020249,3]
[351885553,1738828326536,-513.51,0.00020249,3]
[351885554,1738828326546,-513.51,0.00020249,3]
[351885555,1738828326556,-513.51,0.00020249,3]
[351885556,1738828326565,-513.63463559,0.00020249,3]
[351885557,1738828326576,-500.0,0.00020249,3]
[351885558,1738828326585,-500.0,0.00020249,3]
[351885559,1738828326595,-500.0,0.00020249,3]
[351885560,1738828326604,-359.35173964,0.00020249,3]
[351885561,1738828326614,-683.6,0.00020249,3]
[351885562,1738828326624,-683.6,0.00020249,3]
[351885563,1738828326634,-683.6,0.00020249,3]
[351885564,1738828326643,-683.6,0.00020249,3]
[351885565,1738828326652,-683.63087692,0.00020249,3]
[351885566,1738828326662,-679.33,0.00020249,3]
[351885567,1738828326671,-679.33,0.00020249,3]
[351885568,1738828326681,-679.33,0.00020249,3]
[351885569,1738828326691,-679.33,0.00020249,3]
[351885570,1738828326701,-679.52,0.00020249,3]
[351885571,1738828326716,-1448.12,0.00020249,3]
[351885572,1738828326726,-1448.12,0.00020249,3]
[351885573,1738828326736,-1448.12,0.00020249,3]
[351885574,1738828326745,-1448.12,0.00020249,3]
[351885575,1738828326754,-1448.28163508,0.00020249,3]
[351885576,1738828326764,-1159.34,0.00020249,3]
[351885577,1738828326774,-1159.34,0.00020249,3]
[351885578,1738828326784,-1159.34,0.00020249,3]
[351885579,1738828326794,-1159.34,0.00020249,3]
[351885580,1738828326804,-1159.56,0.00020249,3]
[351885581,1738828326813,-500.0,0.00020249,3]
[351885582,1738828326823,-500.0,0.00020249,3]
[351885583,1738828326832,-221.78,0.00020249,3]
[351885584,1738828326842,-500.0,0.00020249,3]
[351885585,1738828326851,-500.0,0.00020249,3]
[351885586,1738828326861,-500.0,0.00020249,3]
[351885587,1738828326870,-500.0,0.00020249,3]
[351885588,1738828326880,-451.05,0.00020249,3]
[351885589,1738828326889,-635.21,0.00020249,3]
[351885590,1738828326899,-635.21,0.00020249,3]
[351885591,1738828326908,-635.21,0.00020249,3]
[351885592,1738828326918,-518.44,0.00020249,3]
[351885593,1738828326928,-635.21,0.00020249,3]
[351885594,1738828326938,-518.44,0.00020249,3]
[351885595,1738828326947,-635.36,0.00020249,3]
[351885596,1738828326960,-518.44,0.00020249,3]
[351885597,1738828326970,-518.44,0.00020249,3]
[351885598,1738828326979,-518.53,0.00020249,3]
[351885599,1738828326989,-509.57,0.00020249,3]
[351885600,1738828326998,-509.57,0.00020249,3]
[351885601,1738828327008,-509.57,0.00020249,3]
[351885602,1738828327018,-509.57,0.00020249,3]
[351885603,1738828327027,-509.79325414,0.00020249,3]
[351885604,1738828327037,-614.61,0.00020249,3]
[351885605,1738828327047,-614.61,0.00020249,3]
[351885606,1738828327056,-614.61,0.00020249,3]
[351885607,1738828327066,-614.61,0.00020249,3]
[351885608,1738828327079,-614.69,0.00020249,3]
[351885609,1738828327089,-884.8,0.00020249,3]
[351885610,1738828327099,-884.8,0.00020249,3]
[351885611,1738828327109,-884.8,0.00020249,3]
[351885612,1738828327118,-884.8,0.00020249,3]
[351885613,1738828327128,-884.87,0.00020249,3]
[351885614,1738828327138,-500.0,0.00020249,3]
[351885615,1738828327147,-500.0,0.00020249,3]
[351885616,1738828327158,-500.0,0.00020249,3]
[351885617,1738828327168,-500.0,0.00020249,3]
[351885618,1738828327177,-385.42,0.00020249,3]
[351885619,1738828327187,-597.73,0.00020249,3]
[351885620,1738828327197,-597.73,0.00020249,3]
[351885621,1738828327208,-597.73,0.00020249,3]
[351885622,1738828327218,-597.73,0.00020249,3]
[351885623,1738828327227,-597.8606363,0.00020249,3]
[351885624,1738828327237,-663.47,0.00020249,3]
[351885625,1738828327247,-663.47,0.00020249,3]
[351885626,1738828327256,-663.47,0.00020249,3]
[351885627,1738828327266,-663.47,0.00020249,3]
[351885628,1738828327275,-663.59,0.00020249,3]
[351885629,1738828327285,-592.07,0.00020249,3]
[351885630,1738828327295,-592.07,0.00020249,3]
[351885631,1738828327305,-592.07,0.00020249,3]
[351885632,1738828327314,-592.07,0.00020249,3]
[351885633,1738828327324,-592.25903458,0.00020249,3]
[351885634,1738828327334,-529.1,0.00020249,3]
[351885635,1738828327343,-529.1,0.00020249,3]
[351885636,1738828327354,-529.1,0.00020249,3]
[351885637,1738828327363,-529.1,0.00020249,3]
[351885638,1738828327372,-529.25,0.00020249,3]
[351885639,1738828327382,-500.0,0.00020249,3]
[351885640,1738828327392,-500.0,0.00020249,3]
[351885641,1738828327402,-500.0,0.00020249,3]
[351885642,1738828327412,-502.07,0.00020249,3]
[351885643,1738828327422,-765.56,0.00020249,3]
[351885644,1738828327433,-765.56,0.00020249,3]
[351885645,1738828327443,-765.56,0.00020249,3]
[351885646,1738828327456,-765.56,0.00020249,3]
[351885647,1738828327467,-765.73,0.00020249,3]
[351885648,1738828327478,-719.46,0.00020249,3]
[351885649,1738828327488,-719.46,0.00020249,3]
[351885650,1738828327499,-719.46,0.00020249,3]
[351885651,1738828327508,-719.46,0.00020249,3]
[351885652,1738828327519,-719.62,0.00020249,3]
[351885653,1738828327530,-673.85,0.00020249,3]
[351885654,1738828327540,-500.0,0.00020249,3]
[351885655,1738828327550,-673.85,0.00020249,3]
[351885656,1738828327559,-673.85,0.00020249,3]
[351885657,1738828327569,-278.1,0.00020249,3]
[351885658,1738828327579,-673.85,0.00020249,3]
[351885659,1738828327590,-673.94,0.00020249,3]
[351885660,1738828327600,-500.0,0.00020249,3]
[351885661,1738828327611,-555.05,0.00020249,3]
[351885662,1738828327621,-591.95,0.00020249,3]
[351885663,1738828327631,-591.95,0.00020249,3]
[351885664,1738828327640,-591.95,0.00020249,3]
[351885665,1738828327650,-591.95,0.00020249,3]
[351885666,1738828327660,-592.11,0.00020249,3]
[351885667,1738828327671,-541.88,0.00020249,3]
[351885668,1738828327681,-541.88,0.00020249,3]
[351885669,1738828327691,-541.88,0.00020249,3]
[351885670,1738828327702,-541.88,0.00020249,3]
[351885671,1738828327714,-541.93191447,0.00020249,3]
[351885672,1738828327724,-632.34,0.00020249,3]
[351885673,1738828327734,-632.34,0.00020249,3]
[351885674,1738828327745,-632.34,0.00020249,3]
[351885675,1738828327755,-632.34,0.00020249,3]
[351885676,1738828327765,-632.38,0.00020249,3]
[351885677,1738828327776,-970.24,0.00020249,3]
[351885678,1738828327786,-970.24,0.00020249,3]
[351885679,1738828327796,-970.24,0.00020249,3]
[351885680,1738828327807,-970.24,0.00020249,3]
[351885681,1738828327818,-970.37810398,0.00020249,3]
[351885682,1738828327828,-910.08,0.00020249,3]
[351885683,1738828327839,-910.08,0.00020249,3]
[351885684,1738828327849,-910.08,0.00020249,3]
[351885685,1738828327859,-910.08,0.00020249,3]
[351885686,1738828327869,-910.16,0.00020249,3]
[351885687,1738828327879,-553.77,0.00020249,3]
[351885688,1738828327889,-553.77,0.00020249,3]
[351885689,1738828327898,-553.77,0.00020249,3]
[351885690,1738828327908,-553.77,0.00020249,3]
[351885691,1738828327917,-554.00390761,0.00020249,3]
[351885692,1738828327927,-535.37,0.00020249,3]
[351885693,1738828327937,-535.37,0.00020249,3]
[351885694,1738828327947,-535.37,0.00020249,3]
[351885695,1738828327958,-535.37,0.00020249,3]
[351885696,1738828327968,-535.53546841,0.00020249,3]
[351885697,1738828327978,-500.0,0.00020249,3]
[351885698,1738828327987,-298.2,0.00020249,3]
[351885699,1738828327998,-568.95,0.00020249,3]
[351885700,1738828328008,-568.95,0.00020249,3]
[351885701,1738828328019,-568.95,0.00020249,3]
[351885702,1738828328029,-568.95,0.00020249,3]
[351885703,1738828328039,-568.98599199,0.00020249,3]
[351885704,1738828328049,-500.0,0.00020249,3]
[351885705,1738828328059,-500.0,0.00020249,3]
[351885706,1738828328072,-500.0,0.00020249,3]
[351885707,1738828328082,-452.12,0.00020249,3]
[351885708,1738828328092,-880.85,0.00020249,3]
[351885709,1738828328102,-880.85,0.00020249,3]
[351885710,1738828328113,-880.85,0.00020249,3]
[351885711,1738828328122,-880.85,0.00020249,3]
[351885712,1738828328132,-880.87883761,0.00020249,3]
[351885713,1738828328141,-500.0,0.00020249,3]
[351885714,1738828328152,-554.27,0.00020249,3]
[351885715,1738828328163,-915.45,0.00020249,3]
[351885716,1738828328173,-915.45,0.00020249,3]
[351885717,1738828328183,-915.45,0.00020249,3]
[351885718,1738828328193,-915.45,0.00020249,3]
[351885719,1738828328202,-915.49,0.00020249,3]
[351885720,1738828328214,-500.0,0.00020249,3]
[351885721,1738828328224,-500.0,0.00020249,3]
[351885722,1738828328234,-500.0,0.00020249,3]
[351885723,1738828328243,-200.55,0.00020249,3]
[351885724,1738828328252,-585.29,0.00020249,3]
[351885725,1738828328261,-585.29,0.00020249,3]
[351885726,1738828328270,-585.29,0.00020249,3]
[351885727,1738828328279,-585.29,0.00020249,3]
[351885728,1738828328289,-585.36,0.00020249,3]
[351885729,1738828328298,-882.26,0.00020249,3]
[351885730,1738828328308,-882.26,0.00020249,3]
[351885731,1738828328317,-882.26,0.00020249,3]
[351885732,1738828328327,-882.26,0.00020249,3]
[351885733,1738828328337,-882.29,0.00020249,3]
[351885734,1738828328347,-1211.98,0.00020249,3]
[351885735,1738828328357,-1211.98,0.00020249,3]
[351885736,1738828328367,-1211.98,0.00020249,3]
[351885737,1738828328378,-1211.98,0.00020249,3]
[351885738,1738828328388,-1212.0,0.00020249,3]
[351885739,1738828328397,-994.07,0.00020249,3]
[351885740,1738828328407,-994.07,0.00020249,3]
[351885741,1738828328417,-994.07,0.00020249,3]
[351885742,1738828328426,-994.07,0.00020249,3]
[351885743,1738828328435,-994.19,0.00020249,3]
[351885744,1738828328444,-899.16,0.00020249,3]
[351885745,1738828328455,-966.96,0.00020249,3]
[351885746,1738828328465,-966.96,0.00020249,3]
[351885747,1738828328475,-966.96,0.00020249,3]
[351885748,1738828328485,-966.96,0.00020249,3]
[351885749,1738828328495,-967.14,0.00020249,3]
[351885750,1738828328504,-529.22,0.00020249,3]
[351885751,1738828328514,-529.22,0.00020249,3]
[351885752,1738828328524,-529.22,0.00020249,3]
[351885753,1738828328533,-500.0,0.00020249,3]
[351885754,1738828328543,-529.22,0.00020249,3]
[351885755,1738828328553,-500.0,0.00020249,3]
[351885756,1738828328563,-529.34,0.00020249,3]
[351885757,1738828328573,-500.0,0.00020249,3]
[351885758,1738828328583,-317.4,0.00020249,3]
[351885759,1738828328593,-500.0,0.00020249,3]
[351885760,1738828328788,-1133.41,0.00020249,3]
[351885761,1738828328799,-1133.41,0.00020249,3]
[351885762,1738828328809,-1133.41,0.00020249,3]
[351885763,1738828328820,-1133.41,0.00020249,3]
[351885764,1738828328831,-1133.47926779,0.00020249,3]
[351885765,1738828328841,-823.75,0.00020249,3]
[351885766,1738828328851,-823.75,0.00020249,3]
[351885767,1738828328861,-823.75,0.00020249,3]
[351885768,1738828328871,-823.75,0.00020249,3]
[351885769,1738828328880,-823.95,0.00020249,3]
[351885770,1738828328890,-1035.82,0.00020249,3]
[351885771,1738828328900,-945.66,0.00020249,3]